fUSD/lending_fUSD_20260701
["ID","MTS","AMOUNT","RATE_DAILY","PERIOD"]
[426810399,1782859843000,-151.0,0.00013483,2]
[426810398,1782859843000,-152.0,0.00013483,2]
[426810396,1782859843000,-2465.9208216,0.00013476,2]
[426810395,1782859843000,-150.0,0.00013476,2]
[426810393,1782859843000,-150.0,0.00013476,2]
[426810394,1782859843000,-892.0,0.00013476,2]
[426810390,1782859843000,-272.31843077,0.00013429,2]
[426810392,1782859843000,-166.66,0.00013455,2]
[426810391,1782859843000,-320.83765671,0.00013431,2]
[426810404,1782859843000,-744.7183809,0.00013612,2]
[426810418,1782859843000,-508.44674096,0.00013698,2]
[426810410,1782859843000,-500.0,0.00013698,2]
[426810416,1782859843000,-438.81190148,0.00013698,2]
[426810419,1782859843000,-500.0,0.00013698,2]
[426810445,1782859843000,-291.64997414,0.00013698,2]
[426810440,1782859843000,-360.44632163,0.00013698,2]
[426810441,1782859843000,-430.2598786,0.00013698,2]
[426810444,1782859843000,-500.0,0.00013698,2]
[426810443,1782859843000,-500.0,0.00013698,2]
[426810442,1782859843000,-69.7401214,0.00013698,2]
[426810439,1782859843000,-139.55367837,0.00013698,2]
[426810437,1782859843000,-500.0,0.00013698,2]
[426810435,1782859843000,-500.0,0.00013698,2]
[426810436,1782859843000,-500.0,0.00013698,2]
[426810434,1782859843000,-500.0,0.00013698,2]
[426810431,1782859843000,-500.0,0.00013698,2]
[426810438,1782859843000,-500.0,0.00013698,2]
[426810433,1782859843000,-500.0,0.00013698,2]
[426810432,1782859843000,-410.009921,0.00013698,2]
[426810421,1782859843000,-500.0,0.00013698,2]
[426810422,1782859843000,-500.0,0.00013698,2]
[426810423,1782859843000,-500.0,0.00013698,2]
[426810424,1782859843000,-500.0,0.00013698,2]
[426810426,1782859843000,-500.0,0.00013698,2]
[426810430,1782859843000,-500.0,0.00013698,2]
[426810425,1782859843000,-504.82018076,0.00013698,2]
[426810429,1782859843000,-500.0,0.00013698,2]
[426810427,1782859843000,-500.0,0.00013698,2]
[426810428,1782859843000,-500.0,0.00013698,2]
[426810420,1782859843000,-500.0,0.00013698,2]
[426810455,1782859846000,-1666.36590335,0.00013858,2]
[426810456,1782859846000,-2651.71344,0.00013858,2]
[426810449,1782859846000,-217.45641,0.00013858,2]
[426810453,1782859846000,-153.254805,0.00013858,2]
[426810454,1782859846000,-151.0,0.00013858,2]
[426810446,1782859846000,-218.54221675,0.00013698,2]
[426810450,1782859846000,-217.45641,0.00013858,2]
[426810447,1782859846000,-327.5610029,0.00013699,2]
[426810448,1782859846000,-166.66,0.00013722,2]
[426810458,1782859846000,-4570.48846354,0.00013858,2]
[426810452,1782859846000,-217.45641,0.00013858,2]
[426810461,1782859846000,-166.66,0.00013988,2]
[426810451,1782859846000,-217.45641,0.00013858,2]
[426810463,1782859846000,-2000.0,0.00014,2]
[426810469,1782859846000,-154.11,0.00014247,2]
[426810471,1782859846000,-500.0,0.00014317,2]
[426810472,1782859846000,-290.31774471,0.00014364,2]
[426810468,1782859846000,-540.28,0.00014187,2]
[426810470,1782859846000,-600.0,0.00014317,2]
[426810466,1782859846000,-257.04754162,0.00014024,2]
[426810459,1782859846000,-151.0,0.00013877,2]
[426810464,1782859846000,-151.0,0.0001402,2]
[426810465,1782859846000,-151.0,0.0001402,2]
[426810462,1782859846000,-151.0,0.00013997,2]
[426810457,1782859846000,-1383.01708603,0.00013858,2]
[426810460,1782859846000,-254.48,0.00013944,2]
[426810467,1782859846000,-380.59556489,0.00014081,2]
[426810474,1782860076000,1204.2838,0.0003013,30]
[426810475,1782860105000,500.0,0.00030136,30]
[426810476,1782860117000,166.0,0.00028528,30]
[426810477,1782860118000,169.36923398,0.00029528,30]
[426810478,1782860123000,500.0,0.00030136,30]
[426810479,1782860139000,165.0,0.00028528,30]
[426810480,1782860140000,167.0,0.00029528,30]
[426810482,1782860144000,500.0,0.00030136,120]
[426810481,1782860144000,500.0,0.00030136,120]
[426810483,1782860171000,2832.73,0.00029879,30]
[426810484,1782860216000,500.0,0.00030136,30]
[426810485,1782860233000,500.0,0.00030136,30]
[426810486,1782860270000,635.81,0.00030136,30]
[426810487,1782860337000,347.0,0.00028528,30]
[426810488,1782860338000,347.0,0.00029528,30]
[426810494,1782860501000,166.66,0.00012503,2]
[426810493,1782860501000,166.66,0.00012245,2]
[426810495,1782860502000,166.66,0.0001276,2]
[426810500,1782860580000,396.0,0.0003011,30]
[426810505,1782860714000,52071.98341655,0.00028,30]
[426810508,1782860861000,547.24,0.00012513,2]
[426810510,1782860940000,2000.0,0.00030135,120]
[426810509,1782860940000,2000.0,0.00030135,30]
[426810511,1782861006000,150.0,0.00012533,2]
[426810532,1782861032000,-451.1671386,0.00013217,2]
[426810529,1782861032000,-150.0,0.00013217,2]
[426810530,1782861032000,-150.0,0.00013217,2]
[426810527,1782861032000,-150.0,0.00013217,2]
[426810526,1782861032000,-151.0,0.00013217,2]
[426810523,1782861032000,-1171.55401074,0.00013122,2]
[426810525,1782861032000,-151.0,0.00013217,2]
[426810524,1782861032000,-150.0,0.00013217,2]
[426810520,1782861032000,-2298.94700101,0.00013122,2]
[426810521,1782861032000,-9607.47430077,0.00013122,2]
[426810519,1782861032000,-304.228069,0.00013122,2]
[426810515,1782861032000,-2199.45212507,0.00013122,2]
[426810518,1782861032000,-829.63571853,0.00013122,2]
[426810517,1782861032000,-622.71800327,0.00013122,2]
[426810516,1782861032000,-4960.96864835,0.00013122,2]
[426810514,1782861032000,-188.39106301,0.00013117,2]
[426810531,1782861032000,-152.0,0.00013217,2]
[426810522,1782861032000,-2539.32212326,0.00013122,2]
[426810528,1782861032000,-151.0,0.00013217,2]
[426810513,1782861032000,-166.66,0.00013018,2]
[426810538,1782861032000,-150.0,0.00013327,2]
[426810534,1782861032000,-1548.8328614,0.00013217,2]
[426810555,1782861032000,-5.54245508,0.00013341,2]
[426810554,1782861032000,-150.0,0.0001334,2]
[426810553,1782861032000,-150.0,0.0001334,2]
[426810551,1782861032000,-152.0,0.0001334,2]
[426810552,1782861032000,-153.0,0.0001334,2]
[426810549,1782861032000,-150.0,0.0001334,2]
[426810548,1782861032000,-152.0,0.0001334,2]
[426810546,1782861032000,-150.0,0.0001334,2]
[426810550,1782861032000,-152.0,0.0001334,2]
[426810545,1782861032000,-150.0,0.0001334,2]
[426810536,1782861032000,-166.66,0.00013276,2]
[426810547,1782861032000,-150.0,0.0001334,2]
[426810539,1782861032000,-151.0,0.00013327,2]
[426810541,1782861032000,-151.0,0.00013327,2]
[426810537,1782861032000,-589.7,0.000133,2]
[426810543,1782861032000,-151.0,0.0001333,2]
[426810540,1782861032000,-153.0,0.00013327,2]
[426810544,1782861032000,-243.44,0.00013339,2]
[426810542,1782861032000,-152.0,0.00013328,2]
[426810564,1782861038000,-166.66,0.00013534,2]
[426810558,1782861038000,-145.45754492,0.00013341,2]
[426810560,1782861038000,-100.36253572,0.00013419,2]
[426810561,1782861038000,-70.0155205,0.00013419,2]
[426810562,1782861038000,-151.0,0.00013427,2]
[426810559,1782861038000,-150.0,0.00013375,2]
[426810563,1782861038000,-326.56100289,0.00013511,2]
[426810567,1782861038000,-152.0,0.00013685,2]
[426810568,1782861038000,-2500.0,0.00013696,2]
[426810565,1782861038000,-1165.70443322,0.0001356,2]
[426810569,1782861038000,-2458.31344997,0.00013696,2]
[426810570,1782861038000,-568.21232013,0.00013696,2]
[426810571,1782861038000,-413.38553981,0.00013697,2]
[426810572,1782861038000,-366.51977407,0.00013698,2]
[426810566,1782861038000,-163.78050145,0.00013652,2]
[426810886,1782861043000,-332.67618187,0.00013795,2]
[426810888,1782861043000,-500.0,0.00013795,2]
[426810885,1782861043000,-300.0,0.00013795,2]
[426810884,1782861043000,-500.0,0.00013795,2]
[426810880,1782861043000,-500.0,0.00013795,2]
[426810878,1782861043000,-500.0,0.00013698,2]
[426810882,1782861043000,-500.0,0.00013795,2]
[426810883,1782861043000,-529.0754622,0.00013795,2]
[426810877,1782861043000,-500.0,0.00013698,2]
[426810879,1782861043000,-818.90250723,0.00013698,2]
[426810876,1782861043000,-500.0,0.00013698,2]
[426810874,1782861043000,-133.48022593,0.00013698,2]
[426810875,1782861043000,-504.82018076,0.00013698,2]
[426810889,1782861043000,-300.0,0.00013795,2]
[426810881,1782861043000,-500.0,0.00013795,2]
[426810893,1782861043000,-500.0,0.00013795,2]
[426810887,1782861043000,-666.0,0.00013795,2]
[426810892,1782861043000,-500.0,0.00013795,2]
[426810905,1782861043000,-9846.62006871,0.00013796,2]
[426810907,1782861043000,-1361.39009554,0.00013796,2]
[426810904,1782861043000,-500.0,0.00013795,2]
[426810903,1782861043000,-277.3985509,0.00013795,2]
[426810899,1782861043000,-500.0,0.00013795,2]
[426810900,1782861043000,-500.0,0.00013795,2]
[426810902,1782861043000,-222.6014491,0.00013795,2]
[426810901,1782861043000,-500.0,0.00013795,2]
[426810897,1782861043000,-508.44674096,0.00013795,2]
[426810890,1782861043000,-300.0,0.00013795,2]
[426810895,1782861043000,-500.0,0.00013795,2]
[426810891,1782861043000,-500.0,0.00013795,2]
[426810896,1782861043000,-500.0,0.00013795,2]
[426810894,1782861043000,-500.0,0.00013795,2]
[426810898,1782861043000,-500.0,0.00013795,2]
[426810906,1782861043000,-790.70620023,0.00013796,2]
[426811057,1782861279000,500.85147294,0.00030136,30]
[426811058,1782861350000,600.32194551,0.00011966,2]
[426811059,1782861397000,312.0,0.00028528,30]
[426811060,1782861398000,312.0,0.00029528,30]
[426811061,1782861569000,166.66,0.00012626,2]
[426811062,1782861569000,166.66,0.00012891,2]
[426811065,1782861790000,968.499637,0.0001235,2]
[426811067,1782861894000,150.48,0.00012914,2]
[426811068,1782862023000,575.52,0.0003,30]
[426811070,1782862140000,2000.0,0.00030134,120]
[426811069,1782862140000,2000.0,0.00030135,30]
[426811071,1782862194000,207.0,0.00030136,120]
[426811094,1782862232000,-298.77,0.00013122,2]
[426811092,1782862232000,-163.88,0.0001312,2]
[426811098,1782862232000,-211.6111841,0.00013338,2]
[426811095,1782862232000,-324.16,0.00013132,2]
[426811096,1782862232000,-166.66,0.00013157,2]
[426811091,1782862232000,-500.0,0.00013119,2]
[426811109,1782862232000,-151.0,0.00013339,2]
[426811100,1782862232000,-497.42067462,0.00013338,2]
[426811093,1782862232000,-16171.44,0.00013122,2]
[426811101,1782862232000,-151.0,0.00013339,2]
[426811103,1782862232000,-152.0,0.00013339,2]
[426811106,1782862232000,-151.0,0.00013339,2]
[426811099,1782862232000,-500.0,0.00013338,2]
[426811090,1782862232000,-500.0,0.00013119,2]
[426811076,1782862232000,-386.56822735,0.00013041,2]
[426811088,1782862232000,-500.0,0.00013119,2]
[426811085,1782862232000,-500.0,0.00013119,2]
[426811086,1782862232000,-500.0,0.00013119,2]
[426811087,1782862232000,-500.0,0.00013119,2]
[426811089,1782862232000,-500.0,0.00013119,2]
[426811084,1782862232000,-641.71608893,0.00013119,2]
[426811083,1782862232000,-500.0,0.00013119,2]
[426811082,1782862232000,-350.41329632,0.00013119,2]
[426811081,1782862232000,-279.30832635,0.00013119,2]
[426811079,1782862232000,-150.0,0.00013118,2]
[426811080,1782862232000,-500.0,0.00013119,2]
[426811078,1782862232000,-425.60553485,0.0001308,2]
[426811077,1782862232000,-3233.79177265,0.00013041,2]
[426811105,1782862232000,-150.0,0.00013339,2]
[426811097,1782862232000,-392.51063466,0.00013338,2]
[426811102,1782862232000,-150.0,0.00013339,2]
[426811126,1782862232000,-150.0,0.00013339,2]
[426811107,1782862232000,-153.0,0.00013339,2]
[426811138,1782862232000,-6486.63977788,0.00013696,2]
[426811136,1782862232000,-151.0,0.00013693,2]
[426811135,1782862232000,-111.63018199,0.00013689,2]
[426811134,1782862232000,-55.02981801,0.00013689,2]
[426811130,1782862232000,-257.70453224,0.00013527,2]
[426811127,1782862232000,-166.66,0.00013423,2]
[426811132,1782862232000,-72.98518199,0.00013595,2]
[426811131,1782862232000,-927.01481801,0.00013595,2]
[426811125,1782862232000,-151.0,0.00013339,2]
[426811137,1782862232000,-347.26829241,0.00013696,2]
[426811128,1782862232000,-174.26020974,0.00013449,2]
[426811129,1782862232000,-1825.73979026,0.00013449,2]
[426811104,1782862232000,-152.0,0.00013339,2]
[426811122,1782862232000,-151.0,0.00013339,2]
[426811124,1782862232000,-151.0,0.00013339,2]
[426811133,1782862232000,-1692.245,0.00013646,2]
[426811108,1782862232000,-152.0,0.00013339,2]
[426811110,1782862232000,-150.0,0.00013339,2]
[426811111,1782862232000,-150.0,0.00013339,2]
[426811113,1782862232000,-150.0,0.00013339,2]
[426811123,1782862232000,-151.0,0.00013339,2]
[426811116,1782862232000,-152.0,0.00013339,2]
[426811112,1782862232000,-151.0,0.00013339,2]
[426811114,1782862232000,-151.0,0.00013339,2]
[426811118,1782862232000,-151.0,0.00013339,2]
[426811121,1782862232000,-151.0,0.00013339,2]
[426811117,1782862232000,-150.0,0.00013339,2]
[426811120,1782862232000,-8.49787703,0.00013339,2]
[426811119,1782862232000,-142.50212297,0.00013339,2]
[426811115,1782862232000,-151.0,0.00013339,2]
[426811140,1782862238000,-5186.37092971,0.00013696,2]
[426811141,1782862238000,-2921.55602647,0.00013696,2]
[426811144,1782862238000,-884.0,0.0001372,2]
[426811145,1782862238000,-295.59911493,0.0001372,2]
[426811142,1782862238000,-654.12200578,0.00013698,2]
[426811148,1782862238000,-3888.51337882,0.00013746,2]
[426811146,1782862238000,-603.40088507,0.0001372,2]
[426811147,1782862238000,-715.35731416,0.00013746,2]
[426811151,1782862238000,-301.72,0.00013746,2]
[426811149,1782862238000,-859.22000331,0.00013746,2]
[426811150,1782862238000,-374.46067128,0.00013746,2]
[426811143,1782862238000,-152.0,0.00013698,2]
[426811156,1782862240000,-870.77827222,0.00013746,2]
[426811155,1782862240000,-1202.24255563,0.00013746,2]
[426811154,1782862240000,-2145.50283698,0.00013746,2]
[426811153,1782862240000,-327.84001672,0.00013746,2]
[426811152,1782862240000,-7447.832759,0.00013746,2]
[426811185,1782862243000,-500.0,0.00013795,2]
[426811176,1782862243000,-151.0,0.00013746,2]
[426811183,1782862243000,-500.0,0.00013795,2]
[426811180,1782862243000,-300.0,0.00013795,2]
[426811178,1782862243000,-151.0,0.00013793,2]
[426811179,1782862243000,-500.0,0.00013795,2]
[426811187,1782862243000,-542.27995136,0.00013795,2]
[426811171,1782862243000,-173.965128,0.00013746,2]
[426811186,1782862243000,-300.0,0.00013795,2]
[426811173,1782862243000,-790.70620023,0.00013746,2]
[426811167,1782862243000,-410.009921,0.00013746,2]
[426811172,1782862243000,-6105.74925567,0.00013746,2]
[426811170,1782862243000,-173.965128,0.00013746,2]
[426811168,1782862243000,-173.965128,0.00013746,2]
[426811169,1782862243000,-173.965128,0.00013746,2]
[426811165,1782862243000,-2912.39893094,0.00013746,2]
[426811164,1782862243000,-8094.11812239,0.00013746,2]
[426811163,1782862243000,-36.84411657,0.00013746,2]
[426811162,1782862243000,-1563.76493678,0.00013746,2]
[426811175,1782862243000,-86775.82772276,0.00013746,2]
[426811174,1782862243000,-1361.39009554,0.00013746,2]
[426811181,1782862243000,-666.0,0.00013795,2]
[426811166,1782862243000,-500.0,0.00013746,2]
[426811184,1782862243000,-500.0,0.00013795,2]
[426811182,1782862243000,-500.0,0.00013795,2]
[426811206,1782862243000,-173.965128,0.00013795,2]
[426811205,1782862243000,-173.965128,0.00013795,2]
[426811203,1782862243000,-173.965128,0.00013795,2]
[426811202,1782862243000,-504.82018076,0.00013795,2]
[426811207,1782862243000,-500.0,0.00013795,2]
[426811201,1782862243000,-500.0,0.00013795,2]
[426811193,1782862243000,-500.0,0.00013795,2]
[426811192,1782862243000,-500.0,0.00013795,2]
[426811190,1782862243000,-300.0,0.00013795,2]
[426811204,1782862243000,-173.965128,0.00013795,2]
[426811195,1782862243000,-500.0,0.00013795,2]
[426811191,1782862243000,-500.0,0.00013795,2]
[426811199,1782862243000,-500.0,0.00013795,2]
[426811189,1782862243000,-500.0,0.00013795,2]
[426811200,1782862243000,-500.0,0.00013795,2]
[426811188,1782862243000,-291.64997414,0.00013795,2]
[426811177,1782862243000,-151.0,0.00013746,2]
[426811194,1782862243000,-500.0,0.00013795,2]
[426811196,1782862243000,-508.44674096,0.00013795,2]
[426811197,1782862243000,-500.0,0.00013795,2]
[426811198,1782862243000,-500.0,0.00013795,2]
[426811217,1782862244000,-173.965128,0.00013796,2]
[426811228,1782862244000,-600.0,0.00014345,2]
[426811229,1782862244000,-600.0,0.00014345,2]
[426811225,1782862244000,-255.0,0.0001422,2]
[426811226,1782862244000,-200.0,0.00014249,2]
[426811222,1782862244000,-150.4596005,0.00014087,2]
[426811223,1782862244000,-2651.71344,0.00014181,2]
[426811232,1782862244000,-300.0,0.00014345,2]
[426811224,1782862244000,-151.0,0.00014181,2]
[426811221,1782862244000,-166.66,0.00013955,2]
[426811218,1782862244000,-173.965128,0.00013796,2]
[426811208,1782862244000,-655.12200578,0.00013795,2]
[426811219,1782862244000,-173.965128,0.00013796,2]
[426811215,1782862244000,-173.965128,0.00013796,2]
[426811216,1782862244000,-173.965128,0.00013796,2]
[426811212,1782862244000,-173.965128,0.00013796,2]
[426811214,1782862244000,-173.965128,0.00013796,2]
[426811213,1782862244000,-173.965128,0.00013796,2]
[426811211,1782862244000,-500.0,0.00013795,2]
[426811210,1782862244000,-500.0,0.00013795,2]
[426811209,1782862244000,-500.0,0.00013795,2]
[426811230,1782862244000,-600.0,0.00014345,2]
[426811220,1782862244000,-726.07505992,0.00013811,2]
[426811231,1782862244000,-193.0,0.00014345,2]
[426811227,1782862244000,-2921.55602642,0.00014274,2]
[426811234,1782862244000,-241.44792089,0.00014345,2]
[426811259,1782862244000,-173.965132,0.00014712,2]
[426811258,1782862244000,-173.965128,0.00014712,2]
[426811253,1782862244000,-2464.1069464,0.00014712,2]
[426811252,1782862244000,-3851.8266807,0.00014712,2]
[426811255,1782862244000,-173.965128,0.00014712,2]
[426811249,1782862244000,-1069.321762,0.000147,2]
[426811250,1782862244000,-563.47165,0.000147,2]
[426811254,1782862244000,-173.965128,0.00014712,2]
[426811248,1782862244000,-2100.0,0.000147,5]
[426811247,1782862244000,-500.0,0.00014668,2]
[426811246,1782862244000,-2500.0,0.00014624,2]
[426811251,1782862244000,-1480.235572,0.000147,2]
[426811240,1782862244000,-700.0,0.000145,5]
[426811233,1782862244000,-300.0,0.00014345,2]
[426811236,1782862244000,-500.0,0.00014345,2]
[426811245,1782862244000,-1400.0,0.000146,5]
[426811238,1782862244000,-177.960468,0.00014345,2]
[426811237,1782862244000,-500.0,0.00014345,2]
[426811242,1782862244000,-300.0,0.00014579,2]
[426811261,1782862244000,-9019.75311536,0.00014712,2]
[426811235,1782862244000,-153.43854319,0.00014345,2]
[426811239,1782862244000,-600.0,0.00014345,2]
[426811243,1782862244000,-300.0,0.00014579,2]
[426811241,1782862244000,-271.18796842,0.00014577,2]
[426811244,1782862244000,-300.0,0.00014579,2]
[426811262,1782862245000,-1475.0,0.00014712,2]
[426811264,1782862246000,-1620.34327125,0.00014712,2]
[426811265,1782862246000,-2271.95707828,0.00014712,2]
[426811263,1782862246000,-672.88866102,0.00014712,2]
[426811270,1782862460000,281.0,0.00028528,30]
[426811271,1782862461000,281.0,0.00029528,30]
[426811272,1782862515000,408.6,0.00030137,30]
[426811279,1782862586000,685.33032751,0.00029123,30]
[426811278,1782862586000,685.33032751,0.00029014,30]
[426811277,1782862586000,685.33032751,0.00028904,30]
[426811276,1782862586000,685.33032751,0.00028795,30]
[426811275,1782862586000,685.33032751,0.00028685,30]
[426811273,1782862586000,685.33032751,0.00028438,30]
[426811274,1782862586000,685.33032751,0.00028575,30]
[426811280,1782862586000,685.33032751,0.0002926,30]
[426811284,1782862587000,685.33032751,0.00029699,30]
[426811283,1782862587000,685.33032751,0.00029589,30]
[426811282,1782862587000,685.33032751,0.00029479,30]
[426811281,1782862587000,685.33032751,0.0002937,30]
[426811285,1782862780000,169.03,0.00013,14]
[426811289,1782863253000,844.89,0.00030136,30]
[426811290,1782863321000,166.66,0.00012542,2]
[426811291,1782863322000,166.66,0.00012806,2]
[426811293,1782863340000,2000.0,0.00030135,120]
[426811292,1782863340000,2000.0,0.00030136,30]
[426811295,1782863431000,-591.15223942,0.00013021,2]
[426811294,1782863431000,-500.0,0.00013021,2]
[426811296,1782863431000,-98.04080588,0.0001307,2]
[426811297,1782863431000,-68.61919412,0.0001307,2]
[426811298,1782863431000,-259.32,0.00013242,2]
[426811300,1782863431000,-166.66,0.00013334,2]
[426811299,1782863431000,-332.94,0.00013288,2]
[426811303,1782863431000,-229.72647302,0.00013622,2]
[426811304,1782863431000,-500.0,0.00013795,2]
[426811305,1782863431000,-325.76,0.00013795,2]
[426811301,1782863431000,-1642.57,0.00013373,2]
[426811302,1782863431000,-166.66,0.00013598,2]
[426811313,1782863431000,-999.99,0.00013795,2]
[426811308,1782863431000,-151.0,0.00013795,2]
[426811306,1782863431000,-153.0,0.00013795,2]
[426811307,1782863431000,-151.0,0.00013795,2]
[426811318,1782863431000,-889.73795982,0.00013795,2]
[426811320,1782863431000,-783.58501936,0.00013795,2]
[426811319,1782863431000,-575.40600732,0.00013795,2]
[426811315,1782863431000,-7603.06889391,0.00013795,2]
[426811317,1782863431000,-4340.06170609,0.00013795,2]
[426811310,1782863431000,-539.75110609,0.00013795,2]
[426811311,1782863431000,-500.0,0.00013795,2]
[426811314,1782863431000,-822.38110609,0.00013795,2]
[426811309,1782863431000,-151.0,0.00013795,2]
[426811312,1782863431000,-455.62889391,0.00013795,2]
[426811316,1782863431000,-4999.99,0.00013795,2]
[426811341,1782863437000,-5651.61930741,0.00013795,2]
[426811342,1782863437000,-4442.02876948,0.00013795,2]
[426811563,1782863439000,-348.19447224,0.00013912,2]
[426811580,1782863439000,-151.0,0.00014315,2]
[426811571,1782863439000,-162.78050145,0.00013988,2]
[426811575,1782863439000,-164.4604933,0.00014005,2]
[426811578,1782863439000,-163.78050145,0.00014024,2]
[426811565,1782863439000,-223.27179233,0.00013912,2]
[426811567,1782863439000,-150.0,0.00013912,2]
[426811574,1782863439000,-274.70008821,0.00014005,2]
[426811553,1782863439000,-166.66,0.00013862,2]
[426811560,1782863439000,-424.75744426,0.00013912,2]
[426811551,1782863439000,-221.36,0.00013795,2]
[426811558,1782863439000,-191.81676519,0.00013912,2]
[426811547,1782863439000,-9999.99,0.00013795,2]
[426811545,1782863439000,-490.00316794,0.00013795,2]
[426811549,1782863439000,-150.99,0.00013795,2]
[426811579,1782863439000,-163.78050145,0.00014247,2]
[426811524,1782863439000,-2123.94806258,0.00013795,2]
[426811562,1782863439000,-500.0,0.00013912,2]
[426811569,1782863439000,-151.0,0.00013913,2]
[426811555,1782863439000,-172.35126422,0.00013912,2]
[426811582,1782863439000,-500.0,0.00014315,2]
[426811616,1782863439000,-500.0,0.00014423,2]
[426811611,1782863439000,-529.0754622,0.00014423,2]
[426811608,1782863439000,-300.0,0.00014423,2]
[426811609,1782863439000,-500.0,0.00014423,2]
[426811607,1782863439000,-163.78050145,0.00014345,2]
[426811594,1782863439000,-426.0,0.00014315,2]
[426811602,1782863439000,-309.68225529,0.00014323,2]
[426811601,1782863439000,-216.213,0.00014315,2]
[426811600,1782863439000,-3669.929,0.00014315,2]
[426811613,1782863439000,-500.0,0.00014423,2]
[426811605,1782863439000,-2500.0,0.00014324,2]
[426811603,1782863439000,-2629.40042381,0.00014324,2]
[426811586,1782863439000,-165.937,0.00014315,2]
[426811590,1782863439000,-1278.0,0.00014315,2]
[426811596,1782863439000,-1231.0,0.00014315,2]
[426811584,1782863439000,-410.009921,0.00014315,2]
[426811588,1782863439000,-3565.0,0.00014315,2]
[426811598,1782863439000,-1217.0,0.00014315,2]
[426811592,1782863439000,-1362.0,0.00014315,2]
[426811604,1782863439000,-5186.3709,0.00014324,2]
[426811626,1782863440000,-27098.05203701,0.00014424,2]
[426811632,1782863440000,-47675.37783022,0.00014424,2]
[426811622,1782863440000,-2521.5857655,0.00014424,2]
[426811619,1782863440000,-500.0,0.00014423,2]
[426811634,1782863440000,-648.05691025,0.00014424,2]
[426811638,1782863440000,-286.62273489,0.00014424,2]
[426811629,1782863440000,-3185.8786834,0.00014424,2]
[426811995,1782863442000,-1361.39009554,0.00014424,2]
[426811992,1782863442000,-790.70620023,0.00014424,2]
[426811986,1782863442000,-1584.50000001,0.00014424,2]
[426811983,1782863442000,-2106.74403981,0.00014424,2]
[426811990,1782863442000,-10624.01861961,0.00014424,2]
[426811988,1782863442000,-3312.30473666,0.00014424,2]
[426812059,1782863443000,-329.51783185,0.00014424,2]
[426812376,1782863445000,-3087.78221028,0.00014424,2]
[426812526,1782863482000,560.0,0.00030136,30]
[426812527,1782863499000,154.37,0.00029232,30]
[426812529,1782863521000,281.0,0.00028528,30]
[426812530,1782863522000,281.0,0.00029528,30]
[426812532,1782863589000,156.95,0.00029232,30]
[426812543,1782864297000,159.0,0.00028528,30]
[426812544,1782864374000,153.0,0.00028527,30]
[426812545,1782864375000,153.0,0.00029527,30]
[426812546,1782864396000,154.0,0.00028527,30]
[426812547,1782864397000,154.0,0.00029527,30]
[426812549,1782864416000,190.15,0.00030136,30]
[426812550,1782864442000,320.0,0.0003,30]
[426812551,1782864496000,158.0,0.00028527,30]
[426812552,1782864497000,159.0,0.00029527,30]
[426812553,1782864540000,2000.0,0.00030135,30]
[426812554,1782864554000,1125.92,0.00030137,30]
[426812555,1782864575000,201.0,0.0003,30]
[426812556,1782864592000,253.0,0.00028527,30]
[426812557,1782864593000,253.0,0.00029527,30]
[426812558,1782864624000,190.12,0.00030136,30]